[Event "Early-Titled-Tuesday-Blitz-February-13-2024"]
[Site "Chess.com"]
[Date "2024.02.13"]
[Round "4"]
[White "sergeikim"]
[Black "FGHSMN"]
[Result "1/2-1/2"]
[WhiteElo "2627"]
[BlackElo "2972"]
[TimeControl "180+1"]
[EndTime "8:43:37 PST"]
[Termination "Game drawn by repetition"]

1. d4 {[%clk 0:03:00.9]} 1... Nf6 {[%clk 0:02:59.7]} 2. c4 {[%clk 0:03:00.9]}
2... b6 {[%clk 0:03:00.3]} 3. Nc3 {[%clk 0:03:01.1]} 3... Bb7 {[%clk 0:03:00.9]}
4. Nf3 {[%clk 0:02:59.6]} 4... g6 {[%clk 0:03:00.3]} 5. g3 {[%clk 0:02:58.7]}
5... Bg7 {[%clk 0:03:00.9]} 6. Bg2 {[%clk 0:02:58.4]} 6... O-O {[%clk
0:03:01.5]} 7. O-O {[%clk 0:02:58.3]} 7... Ne4 {[%clk 0:03:02.2]} 8. Nxe4 {[%clk
0:02:52.6]} 8... Bxe4 {[%clk 0:03:03.1]} 9. Bd2 {[%clk 0:02:52.7]} 9... c5
{[%clk 0:02:52.6]} 10. Bc3 {[%clk 0:02:50.9]} 10... Nc6 {[%clk 0:02:52.9]} 11.
e3 {[%clk 0:02:41.8]} 11... d5 {[%clk 0:02:43.5]} 12. dxc5 {[%clk 0:02:37]}
12... Bxc3 {[%clk 0:02:44.4]} 13. bxc3 {[%clk 0:02:36.5]} 13... dxc4 {[%clk
0:02:44.8]} 14. cxb6 {[%clk 0:02:31.1]} 14... axb6 {[%clk 0:02:43.8]} 15. Nd4
{[%clk 0:02:29.1]} 15... Bxg2 {[%clk 0:02:43]} 16. Kxg2 {[%clk 0:02:28.3]} 16...
Ne5 {[%clk 0:02:43.2]} 17. a4 {[%clk 0:02:21.1]} 17... Qd5+ {[%clk 0:02:41.8]}
18. Kg1 {[%clk 0:02:13]} 18... h5 {[%clk 0:02:21.4]} 19. f4 {[%clk 0:02:12.2]}
19... Nd3 {[%clk 0:02:20.7]} 20. Qf3 {[%clk 0:02:12.1]} 20... Qa5 {[%clk
0:02:18.3]} 21. f5 {[%clk 0:02:07.7]} 21... Qe5 {[%clk 0:02:01.1]} 22. Nc6
{[%clk 0:02:01.1]} 22... Qd6 {[%clk 0:01:37.5]} 23. Qe4 {[%clk 0:01:56.9]} 23...
Nc5 {[%clk 0:00:56]} 24. Qf3 {[%clk 0:01:05.2]} 24... gxf5 {[%clk 0:00:39.8]}
25. Rad1 {[%clk 0:00:56.8]} 25... Nd3 {[%clk 0:00:34.7]} 26. Nd4 {[%clk
0:00:57.1]} 26... e6 {[%clk 0:00:34]} 27. Qxh5 {[%clk 0:00:56.4]} 27... Qe7
{[%clk 0:00:32]} 28. e4 {[%clk 0:00:44.6]} 28... Qf6 {[%clk 0:00:19.9]} 29. Nxf5
{[%clk 0:00:36.5]} 29... exf5 {[%clk 0:00:11.5]} 30. Rxf5 {[%clk 0:00:36.4]}
30... Qxc3 {[%clk 0:00:07.4]} 31. Rg5+ {[%clk 0:00:34.7]} 31... Qg7 {[%clk
0:00:08.1]} 32. Rxg7+ {[%clk 0:00:34.5]} 32... Kxg7 {[%clk 0:00:09]} 33. Qg5+
{[%clk 0:00:33.4]} 33... Kh7 {[%clk 0:00:09.2]} 34. Rf1 {[%clk 0:00:28.4]} 34...
Ra5 {[%clk 0:00:09.8]} 35. Qh4+ {[%clk 0:00:26.7]} 35... Kg8 {[%clk 0:00:08.2]}
36. Rf6 {[%clk 0:00:20.4]} 36... Re8 {[%clk 0:00:07.6]} 37. Qg4+ {[%clk
0:00:18.6]} 37... Kf8 {[%clk 0:00:06.8]} 38. Qd7 {[%clk 0:00:18.3]} 38... Ne5
{[%clk 0:00:06.6]} 39. Qd6+ {[%clk 0:00:17]} 39... Kg7 {[%clk 0:00:07.1]} 40.
Rf5 {[%clk 0:00:16.2]} 40... Re6 {[%clk 0:00:06.5]} 41. Qd8 {[%clk 0:00:16]}
41... Ng6 {[%clk 0:00:05.4]} 42. Qd7 {[%clk 0:00:13.5]} 42... Re7 {[%clk
0:00:03.6]} 43. Qd4+ {[%clk 0:00:12.6]} 43... Ne5 {[%clk 0:00:04.3]} 44. Rg5+
{[%clk 0:00:10.2]} 44... Kf8 {[%clk 0:00:03]} 45. Qd8+ {[%clk 0:00:08.2]} 45...
Re8 {[%clk 0:00:03.6]} 46. Qd6+ {[%clk 0:00:07.2]} 46... Re7 {[%clk 0:00:04.2]}
47. Qd8+ {[%clk 0:00:07.2]} 47... Re8 {[%clk 0:00:04.3]} 48. Qd6+ {[%clk
0:00:07.1]} 48... Re7 {[%clk 0:00:04.2]} 49. Qd8+ {[%clk 0:00:07.1]} 1/2-1/2

[Event "Early-Titled-Tuesday-Blitz-February-13-2024"]
[Site "Chess.com"]
[Date "2024.02.13"]
[Round "4"]
[White "Nikolakis2014"]
[Black "Levanzovsky"]
[Result "1/2-1/2"]
[WhiteElo "2705"]
[BlackElo "2512"]
[TimeControl "180+1"]
[EndTime "8:43:40 PST"]
[Termination "Game drawn by repetition"]

1. d4 {[%clk 0:03:00.9]} 1... Nf6 {[%clk 0:02:54.1]} 2. Nf3 {[%clk 0:02:59.5]}
2... d5 {[%clk 0:02:44.9]} 3. c4 {[%clk 0:02:56.8]} 3... e6 {[%clk 0:02:44.5]}
4. g3 {[%clk 0:02:56.4]} 4... c5 {[%clk 0:02:42.9]} 5. Bg2 {[%clk 0:02:55.6]}
5... Nc6 {[%clk 0:02:41.4]} 6. O-O {[%clk 0:02:54.4]} 6... cxd4 {[%clk 0:02:42]}
7. Nxd4 {[%clk 0:02:54.4]} 7... Bc5 {[%clk 0:02:42.5]} 8. Nb3 {[%clk 0:02:49.6]}
8... Bb6 {[%clk 0:02:32.9]} 9. Bg5 {[%clk 0:02:44.4]} 9... dxc4 {[%clk
0:02:31.2]} 10. Bxc6+ {[%clk 0:02:33.7]} 10... bxc6 {[%clk 0:02:30.5]} 11. Qxd8+
{[%clk 0:02:33.6]} 11... Kxd8 {[%clk 0:02:30.8]} 12. N3d2 {[%clk 0:02:33.1]}
12... Bd4 {[%clk 0:02:22.4]} 13. Nxc4 {[%clk 0:02:30.9]} 13... Ke7 {[%clk
0:02:17]} 14. Nbd2 {[%clk 0:02:14.5]} 14... Rd8 {[%clk 0:02:08.2]} 15. Nb3
{[%clk 0:02:11.9]} 15... Ba6 {[%clk 0:02:00.5]} 16. Nca5 {[%clk 0:02:07.9]}
16... Rac8 {[%clk 0:01:50.7]} 17. Nxd4 {[%clk 0:01:56.7]} 17... Rxd4 {[%clk
0:01:48.9]} 18. Rfc1 {[%clk 0:01:56.7]} 18... c5 {[%clk 0:01:38]} 19. Be3 {[%clk
0:01:52.1]} 19... Rd5 {[%clk 0:01:37.2]} 20. b4 {[%clk 0:01:24.9]} 20... Bxe2
{[%clk 0:00:52.5]} 21. Bxc5+ {[%clk 0:01:11]} 21... Kd7 {[%clk 0:00:50.9]} 22.
Bxa7 {[%clk 0:01:07.4]} 22... Bf3 {[%clk 0:00:48]} 23. Rxc8 {[%clk 0:01:00.7]}
23... Kxc8 {[%clk 0:00:47.8]} 24. Rc1+ {[%clk 0:01:00.5]} 24... Kd7 {[%clk
0:00:48.1]} 25. Nb3 {[%clk 0:00:44.3]} 25... e5 {[%clk 0:00:41.3]} 26. a4 {[%clk
0:00:41.6]} 26... Ne4 {[%clk 0:00:27.1]} 27. Nc5+ {[%clk 0:00:38.4]} 27... Nxc5
{[%clk 0:00:27]} 28. Bxc5 {[%clk 0:00:37.9]} 28... g5 {[%clk 0:00:19.3]} 29. h3
{[%clk 0:00:31.5]} 29... h5 {[%clk 0:00:19.2]} 30. a5 {[%clk 0:00:28]} 30... g4
{[%clk 0:00:18.3]} 31. a6 {[%clk 0:00:23.5]} 31... Kc6 {[%clk 0:00:13.3]} 32.
Be3+ {[%clk 0:00:09.2]} 32... Kb5 {[%clk 0:00:10.3]} 33. a7 {[%clk 0:00:09.8]}
33... Rd8 {[%clk 0:00:06.5]} 34. hxg4 {[%clk 0:00:09.8]} 34... hxg4 {[%clk
0:00:06.4]} 35. Kf1 {[%clk 0:00:09.3]} 35... Kxb4 {[%clk 0:00:04.4]} 36. Ke1
{[%clk 0:00:08.2]} 36... Kb5 {[%clk 0:00:04.7]} 37. Rb1+ {[%clk 0:00:08.4]}
37... Ka6 {[%clk 0:00:03.4]} 38. Ra1+ {[%clk 0:00:07.9]} 38... Kb7 {[%clk
0:00:03.3]} 39. Rb1+ {[%clk 0:00:08.1]} 39... Ka8 {[%clk 0:00:03.6]} 40. Rc1
{[%clk 0:00:08.1]} 40... Rh8 {[%clk 0:00:03.5]} 41. Kd2 {[%clk 0:00:08.2]} 41...
Rd8+ {[%clk 0:00:03.8]} 42. Kc3 {[%clk 0:00:08.3]} 42... Rc8+ {[%clk 0:00:04.3]}
43. Kb2 {[%clk 0:00:08.7]} 43... Rxc1 {[%clk 0:00:04.4]} 44. Kxc1 {[%clk
0:00:09.3]} 44... Kb7 {[%clk 0:00:03.6]} 45. Kd2 {[%clk 0:00:09.8]} 45... Kc7
{[%clk 0:00:03.3]} 46. Kc3 {[%clk 0:00:10.3]} 46... Kd7 {[%clk 0:00:02.8]} 47.
Kb4 {[%clk 0:00:10.4]} 47... Kc7 {[%clk 0:00:03]} 48. Kc5 {[%clk 0:00:10.5]}
48... f5 {[%clk 0:00:02.8]} 49. Kb5 {[%clk 0:00:09.4]} 49... Kb7 {[%clk
0:00:03.3]} 50. Kc5 {[%clk 0:00:09.4]} 50... Be4 {[%clk 0:00:03.5]} 51. Kd6
{[%clk 0:00:09.2]} 51... Ka8 {[%clk 0:00:04.3]} 52. Kxe5 {[%clk 0:00:09.6]}
52... Kb7 {[%clk 0:00:05]} 53. Kf4 {[%clk 0:00:10.2]} 53... Ka8 {[%clk
0:00:05.6]} 54. Ke5 {[%clk 0:00:10.9]} 54... Kb7 {[%clk 0:00:05.5]} 55. Kd6
{[%clk 0:00:11.1]} 55... Ka8 {[%clk 0:00:05.6]} 56. Kc7 {[%clk 0:00:11.3]} 56...
Bf3 {[%clk 0:00:05.8]} 57. Kd6 {[%clk 0:00:12]} 57... Be4 {[%clk 0:00:06.2]} 58.
Ke5 {[%clk 0:00:12.7]} 1/2-1/2

[Event "Early-Titled-Tuesday-Blitz-February-13-2024"]
[Site "Chess.com"]
[Date "2024.02.13"]
[Round "4"]
[White "Kirill_Klukin"]
[Black "jaskol95"]
[Result "0-1"]
[WhiteElo "2804"]
[BlackElo "2583"]
[TimeControl "180+1"]
[EndTime "8:43:42 PST"]
[Termination "jaskol95 won by resignation"]

1. f4 {[%clk 0:03:00.9]} 1... d5 {[%clk 0:02:58.8]} 2. Nf3 {[%clk 0:03:00.8]}
2... Nf6 {[%clk 0:02:57]} 3. g3 {[%clk 0:03:01.3]} 3... Bg4 {[%clk 0:02:57]} 4.
Bg2 {[%clk 0:03:02.1]} 4... Bxf3 {[%clk 0:02:56]} 5. Bxf3 {[%clk 0:03:02.4]}
5... e6 {[%clk 0:02:56.7]} 6. O-O {[%clk 0:03:02.4]} 6... c6 {[%clk 0:02:57.4]}
7. d3 {[%clk 0:03:02.6]} 7... Nbd7 {[%clk 0:02:58]} 8. Nc3 {[%clk 0:03:02.4]}
8... Bc5+ {[%clk 0:02:56.9]} 9. Kh1 {[%clk 0:02:54.4]} 9... h5 {[%clk
0:02:51.4]} 10. e4 {[%clk 0:02:52.4]} 10... h4 {[%clk 0:02:50.4]} 11. g4 {[%clk
0:02:52.8]} 11... Qc7 {[%clk 0:02:33.5]} 12. e5 {[%clk 0:02:23.6]} 12... Ng8
{[%clk 0:02:32.4]} 13. d4 {[%clk 0:02:24.1]} 13... Bb4 {[%clk 0:02:17.3]} 14.
Ne2 {[%clk 0:02:24]} 14... O-O-O {[%clk 0:02:09]} 15. c3 {[%clk 0:02:24.3]}
15... Bf8 {[%clk 0:02:08.5]} 16. Be3 {[%clk 0:02:25.1]} 16... f6 {[%clk
0:02:03.3]} 17. Qd2 {[%clk 0:02:16.1]} 17... fxe5 {[%clk 0:02:02.7]} 18. fxe5
{[%clk 0:02:15.9]} 18... Be7 {[%clk 0:02:02]} 19. Nf4 {[%clk 0:02:14.6]} 19...
Nf8 {[%clk 0:01:59.7]} 20. Rf2 {[%clk 0:01:59.7]} 20... Nh6 {[%clk 0:01:59.6]}
21. Raf1 {[%clk 0:01:58.9]} 21... Nf7 {[%clk 0:01:49.8]} 22. Nh3 {[%clk
0:01:40.8]} 22... Ng6 {[%clk 0:01:29.2]} 23. Bxd5 {[%clk 0:01:28.7]} 23... Rxd5
{[%clk 0:01:27.8]} 24. Rxf7 {[%clk 0:01:29.1]} 24... Nxe5 {[%clk 0:01:27.7]} 25.
Bg5 {[%clk 0:01:24.4]} 25... Nxf7 {[%clk 0:01:16.1]} 26. Rxf7 {[%clk 0:01:20]}
26... Rd7 {[%clk 0:00:59.3]} 27. Bf4 {[%clk 0:01:05.2]} 27... Bd6 {[%clk
0:00:53.2]} 28. Rxd7 {[%clk 0:01:05.3]} 28... Qxd7 {[%clk 0:00:51.5]} 29. Qe3
{[%clk 0:01:05.8]} 29... Bxf4 {[%clk 0:00:44.9]} 30. Nxf4 {[%clk 0:01:06.2]}
30... Rf8 {[%clk 0:00:38.6]} 31. Kg2 {[%clk 0:00:52.4]} 31... g5 {[%clk
0:00:20.9]} 32. Ng6 {[%clk 0:00:46.9]} 32... Rf6 {[%clk 0:00:11.3]} 33. Ne5
{[%clk 0:00:40.4]} 33... Qd5+ {[%clk 0:00:11.4]} 34. Kg1 {[%clk 0:00:40.5]}
34... Qxa2 {[%clk 0:00:11.7]} 35. Qe2 {[%clk 0:00:23.1]} 35... Qb1+ {[%clk
0:00:11.5]} 36. Kg2 {[%clk 0:00:22]} 36... Rf4 {[%clk 0:00:09.6]} 37. Nd3 {[%clk
0:00:16.9]} 37... Rf6 {[%clk 0:00:05.2]} 38. Nc5 {[%clk 0:00:13.2]} 38... b6
{[%clk 0:00:04.8]} 39. Ne4 {[%clk 0:00:13.3]} 39... Rf4 {[%clk 0:00:04.8]} 40.
Nxg5 {[%clk 0:00:13.7]} 40... Rf6 {[%clk 0:00:03.9]} 41. Ne4 {[%clk 0:00:12.5]}
41... Rg6 {[%clk 0:00:03.7]} 42. Nf2 {[%clk 0:00:12.3]} 42... Kb7 {[%clk
0:00:03.9]} 43. Nd3 {[%clk 0:00:07.5]} 43... h3+ {[%clk 0:00:03.2]} 44. Kxh3
{[%clk 0:00:06.6]} 44... Qg1 {[%clk 0:00:03.6]} 45. Kh4 {[%clk 0:00:03.5]} 45...
Rh6+ {[%clk 0:00:03.5]} 46. Kg5 {[%clk 0:00:04]} 46... Rxh2 {[%clk 0:00:04]} 47.
Ne5 {[%clk 0:00:04.5]} 47... Rxe2 {[%clk 0:00:03.9]} 48. Kf6 {[%clk 0:00:05.3]}
48... Rf2+ {[%clk 0:00:03.6]} 49. Kxe6 {[%clk 0:00:05.4]} 49... Re2 {[%clk
0:00:04.2]} 50. Kd6 {[%clk 0:00:06.3]} 50... Rxe5 {[%clk 0:00:04.4]} 51. dxe5
{[%clk 0:00:07.2]} 51... Qxg4 {[%clk 0:00:04.9]} 52. e6 {[%clk 0:00:08.1]} 52...
Qf4+ {[%clk 0:00:05.3]} 53. Kd7 {[%clk 0:00:08.4]} 53... Qc7+ {[%clk 0:00:05.7]}
54. Ke8 {[%clk 0:00:08.8]} 54... Qd6 {[%clk 0:00:05.7]} 55. e7 {[%clk
0:00:09.6]} 55... Kc7 {[%clk 0:00:06]} 56. Kf7 {[%clk 0:00:10.2]} 56... Qf4+
{[%clk 0:00:06.4]} 57. Ke6 {[%clk 0:00:08.3]} 57... Qe4+ {[%clk 0:00:06.6]} 58.
Kf7 {[%clk 0:00:09]} 58... Qf5+ {[%clk 0:00:06.8]} 0-1

[Event "Early-Titled-Tuesday-Blitz-February-13-2024"]
[Site "Chess.com"]
[Date "2024.02.13"]
[Round "4"]
[White "Zhigalko_Sergei"]
[Black "Arystanner"]
[Result "1-0"]
[WhiteElo "2972"]
[BlackElo "2814"]
[TimeControl "180+1"]
[EndTime "8:43:45 PST"]
[Termination "Zhigalko_Sergei won by resignation"]

1. e4 {[%clk 0:03:00.9]} 1... e5 {[%clk 0:03:00.3]} 2. Nf3 {[%clk 0:03:00.7]}
2... Nc6 {[%clk 0:03:00.7]} 3. Bb5 {[%clk 0:02:59.6]} 3... Nge7 {[%clk
0:03:00.7]} 4. O-O {[%clk 0:02:59.3]} 4... Ng6 {[%clk 0:03:00.6]} 5. c3 {[%clk
0:02:58.3]} 5... d5 {[%clk 0:03:00.2]} 6. d4 {[%clk 0:02:46.9]} 6... dxe4 {[%clk
0:02:56.9]} 7. Nxe5 {[%clk 0:02:46.4]} 7... Nxe5 {[%clk 0:02:57.5]} 8. dxe5
{[%clk 0:02:46.8]} 8... Qxd1 {[%clk 0:02:58.1]} 9. Rxd1 {[%clk 0:02:46.8]} 9...
Bd7 {[%clk 0:02:58.8]} 10. Bf4 {[%clk 0:02:41.6]} 10... O-O-O {[%clk 0:02:40.2]}
11. Bc4 {[%clk 0:02:14.2]} 11... Be6 {[%clk 0:02:26.7]} 12. Bxe6+ {[%clk
0:02:05.3]} 12... fxe6 {[%clk 0:02:24]} 13. Rxd8+ {[%clk 0:01:58.3]} 13... Kxd8
{[%clk 0:02:22.8]} 14. Nd2 {[%clk 0:01:59.2]} 14... e3 {[%clk 0:02:23.4]} 15.
Bxe3 {[%clk 0:01:23.8]} 15... Nxe5 {[%clk 0:02:22.7]} 16. Ne4 {[%clk 0:01:11.8]}
16... Be7 {[%clk 0:02:06]} 17. Bd4 {[%clk 0:01:03.9]} 17... Bf6 {[%clk
0:01:50.5]} 18. Nc5 {[%clk 0:00:27.6]} 18... Ke7 {[%clk 0:01:37.5]} 19. Re1
{[%clk 0:00:15.4]} 19... b6 {[%clk 0:01:37.5]} 20. Bxe5 {[%clk 0:00:12.2]} 20...
bxc5 {[%clk 0:01:04.7]} 21. Bxc7 {[%clk 0:00:12.4]} 21... c4 {[%clk 0:01:02.6]}
22. Kf1 {[%clk 0:00:11.1]} 22... Rc8 {[%clk 0:00:58.6]} 23. Bf4 {[%clk
0:00:11.2]} 23... Rc5 {[%clk 0:00:52.1]} 24. Re4 {[%clk 0:00:09]} 24... Kd7
{[%clk 0:00:43]} 25. Be3 {[%clk 0:00:08.3]} 25... Rb5 {[%clk 0:00:41.5]} 26. Bc1
{[%clk 0:00:07.9]} 26... Rc5 {[%clk 0:00:37]} 27. Ke2 {[%clk 0:00:07.8]} 27...
a6 {[%clk 0:00:36.3]} 28. Kd1 {[%clk 0:00:07.5]} 28... Kd6 {[%clk 0:00:28]} 29.
Be3 {[%clk 0:00:07.7]} 29... Rc8 {[%clk 0:00:28.2]} 30. f3 {[%clk 0:00:06.6]}
30... Kd5 {[%clk 0:00:25.2]} 31. Kc2 {[%clk 0:00:06.8]} 31... h5 {[%clk
0:00:23.6]} 32. h3 {[%clk 0:00:07]} 32... h4 {[%clk 0:00:20.6]} 33. Bd4 {[%clk
0:00:07.2]} 33... e5 {[%clk 0:00:19.6]} 34. Bf2 {[%clk 0:00:07.5]} 34... g5
{[%clk 0:00:20.3]} 35. Be3 {[%clk 0:00:07.9]} 35... Be7 {[%clk 0:00:19.4]} 36.
Rg4 {[%clk 0:00:08.1]} 36... Rg8 {[%clk 0:00:18.5]} 37. b3 {[%clk 0:00:08.5]}
37... cxb3+ {[%clk 0:00:18.4]} 38. axb3 {[%clk 0:00:09.4]} 38... Ke6 {[%clk
0:00:16.4]} 39. Ra4 {[%clk 0:00:09.2]} 39... Ra8 {[%clk 0:00:16.8]} 40. Kd3
{[%clk 0:00:08.7]} 40... Kf5 {[%clk 0:00:16.4]} 41. Ra5 {[%clk 0:00:08.7]} 41...
Bf6 {[%clk 0:00:16.2]} 42. c4 {[%clk 0:00:08]} 42... Rb8 {[%clk 0:00:15.4]} 43.
Kc2 {[%clk 0:00:07.7]} 43... Ra8 {[%clk 0:00:15.2]} 44. b4 {[%clk 0:00:08]}
44... Bd8 {[%clk 0:00:15]} 45. Ra4 {[%clk 0:00:07.1]} 45... Rc8 {[%clk
0:00:14.7]} 46. Kb3 {[%clk 0:00:07.4]} 46... Rc6 {[%clk 0:00:15.3]} 47. Ra2
{[%clk 0:00:06.5]} 47... Bc7 {[%clk 0:00:14.5]} 48. Rd2 {[%clk 0:00:06.6]} 48...
e4 {[%clk 0:00:13.6]} 49. Rd5+ {[%clk 0:00:06.5]} 49... Kg6 {[%clk 0:00:11.5]}
50. Rxg5+ {[%clk 0:00:06.1]} 50... Kf6 {[%clk 0:00:11.6]} 51. fxe4 {[%clk
0:00:06.3]} 51... Re6 {[%clk 0:00:10.6]} 52. Rg4 {[%clk 0:00:06.5]} 52... Bg3
{[%clk 0:00:10.9]} 53. Bg5+ {[%clk 0:00:06]} 53... Ke5 {[%clk 0:00:10.1]} 54.
Bxh4 {[%clk 0:00:06.9]} 54... Bh2 {[%clk 0:00:09.3]} 55. Bg3+ {[%clk 0:00:06.8]}
55... Bxg3 {[%clk 0:00:09.2]} 56. Rxg3 {[%clk 0:00:07.7]} 56... Kd4 {[%clk
0:00:10]} 57. c5 {[%clk 0:00:06.9]} 1-0

[Event "Early-Titled-Tuesday-Blitz-February-13-2024"]
[Site "Chess.com"]
[Date "2024.02.13"]
[Round "4"]
[White "MyDream003"]
[Black "SouS007"]
[Result "1-0"]
[WhiteElo "2716"]
[BlackElo "2508"]
[TimeControl "180+1"]
[EndTime "8:43:46 PST"]
[Termination "MyDream003 won by checkmate"]

1. Nf3 {[%clk 0:03:00.9]} 1... g5 {[%clk 0:02:56.6]} 2. Nxg5 {[%clk 0:02:50.1]}
2... e5 {[%clk 0:02:56.4]} 3. d4 {[%clk 0:02:43.9]} 3... h6 {[%clk 0:02:54.9]}
4. Nh3 {[%clk 0:02:38.5]} 4... d6 {[%clk 0:02:54.5]} 5. dxe5 {[%clk 0:02:37.2]}
5... Bxh3 {[%clk 0:02:54.2]} 6. gxh3 {[%clk 0:02:36.2]} 6... Nc6 {[%clk
0:02:54.8]} 7. exd6 {[%clk 0:02:24.7]} 7... Bxd6 {[%clk 0:02:55.7]} 8. Nc3
{[%clk 0:02:13.4]} 8... Qh4 {[%clk 0:02:55]} 9. Qd3 {[%clk 0:02:01.5]} 9...
O-O-O {[%clk 0:02:50.9]} 10. Qe4 {[%clk 0:02:01.4]} 10... Qxe4 {[%clk
0:02:28.8]} 11. Nxe4 {[%clk 0:02:02.3]} 11... Nb4 {[%clk 0:02:28.4]} 12. Kd1
{[%clk 0:01:53.9]} 12... Nf6 {[%clk 0:02:17.1]} 13. Nd2 {[%clk 0:01:43.4]} 13...
Rhg8 {[%clk 0:02:01.2]} 14. a3 {[%clk 0:01:41.8]} 14... Nbd5 {[%clk 0:01:59.3]}
15. c4 {[%clk 0:01:12.3]} 15... Nb6 {[%clk 0:01:59.1]} 16. Kc2 {[%clk
0:01:11.9]} 16... a5 {[%clk 0:01:43]} 17. e3 {[%clk 0:01:04.8]} 17... a4 {[%clk
0:01:40.9]} 18. Rb1 {[%clk 0:00:56.6]} 18... Nfd7 {[%clk 0:01:21.9]} 19. Ne4
{[%clk 0:00:46.9]} 19... Be7 {[%clk 0:01:22]} 20. Bd2 {[%clk 0:00:45]} 20... Ne5
{[%clk 0:01:21.2]} 21. c5 {[%clk 0:00:43]} 21... Nd5 {[%clk 0:01:05.8]} 22. b4
{[%clk 0:00:36.9]} 22... axb3+ {[%clk 0:01:03.6]} 23. Rxb3 {[%clk 0:00:36.9]}
23... f5 {[%clk 0:01:04.2]} 24. Ng3 {[%clk 0:00:36.9]} 24... Nf3 {[%clk
0:00:59.3]} 25. Bc1 {[%clk 0:00:24.3]} 25... Bxc5 {[%clk 0:00:56]} 26. Nxf5
{[%clk 0:00:20.4]} 26... Nf6 {[%clk 0:00:45.6]} 27. Be2 {[%clk 0:00:17.6]} 27...
Rg2 {[%clk 0:00:37.7]} 28. Rf1 {[%clk 0:00:12.6]} 28... Nxh2 {[%clk 0:00:36.8]}
29. Nh4 {[%clk 0:00:13.1]} 29... Rg5 {[%clk 0:00:19.2]} 30. Rh1 {[%clk
0:00:12.5]} 30... Bd6 {[%clk 0:00:19.8]} 31. f4 {[%clk 0:00:09.9]} 31... Rc5+
{[%clk 0:00:20.1]} 32. Rc3 {[%clk 0:00:10.5]} 32... Rxc3+ {[%clk 0:00:17.3]} 33.
Kxc3 {[%clk 0:00:11.4]} 33... Ne4+ {[%clk 0:00:18]} 34. Kc2 {[%clk 0:00:10.6]}
34... Be7 {[%clk 0:00:14.5]} 35. Nf5 {[%clk 0:00:09.8]} 35... Bf6 {[%clk
0:00:12.4]} 36. Rxh2 {[%clk 0:00:10.3]} 36... Rd5 {[%clk 0:00:12.8]} 37. Nd4
{[%clk 0:00:05.1]} 37... Rc5+ {[%clk 0:00:13.2]} 38. Kb2 {[%clk 0:00:04.7]}
38... Rc3 {[%clk 0:00:07.4]} 39. Bf3 {[%clk 0:00:04.4]} 39... c5 {[%clk
0:00:07.7]} 40. Bxe4 {[%clk 0:00:04.3]} 40... cxd4 {[%clk 0:00:08.3]} 41. Rc2
{[%clk 0:00:04]} 41... dxe3 {[%clk 0:00:01]} 42. Rxc3+ {[%clk 0:00:04]} 42...
Bxc3+ {[%clk 0:00:01.9]} 43. Kxc3 {[%clk 0:00:04.9]} 43... Kd7 {[%clk
0:00:02.8]} 44. Bxe3 {[%clk 0:00:04.7]} 44... Kd6 {[%clk 0:00:03.7]} 45. Kd3
{[%clk 0:00:05.6]} 45... b5 {[%clk 0:00:04.1]} 46. Bf3 {[%clk 0:00:05.7]} 46...
Kc7 {[%clk 0:00:04.4]} 47. Kc3 {[%clk 0:00:06.6]} 47... Kd6 {[%clk 0:00:04.7]}
48. Kb4 {[%clk 0:00:07.5]} 48... Ke6 {[%clk 0:00:05.6]} 49. Kxb5 {[%clk
0:00:07.4]} 49... Kf5 {[%clk 0:00:06.5]} 50. a4 {[%clk 0:00:08.3]} 50... h5
{[%clk 0:00:06.8]} 51. a5 {[%clk 0:00:09.2]} 51... h4 {[%clk 0:00:07.7]} 52. a6
{[%clk 0:00:10.1]} 52... Kg6 {[%clk 0:00:08.6]} 53. a7 {[%clk 0:00:11]} 53...
Kf6 {[%clk 0:00:09.5]} 54. a8=Q {[%clk 0:00:10.4]} 54... Kg6 {[%clk 0:00:10.4]}
55. Qh8 {[%clk 0:00:10.4]} 55... Kf7 {[%clk 0:00:10.2]} 56. Qxh4 {[%clk
0:00:10.6]} 56... Kg6 {[%clk 0:00:10.6]} 57. Qg5+ {[%clk 0:00:11]} 57... Kf7
{[%clk 0:00:11.5]} 58. Bd5+ {[%clk 0:00:11.4]} 58... Kf8 {[%clk 0:00:12.1]} 59.
Qf6+ {[%clk 0:00:11.3]} 59... Ke8 {[%clk 0:00:12.4]} 60. Bc6# {[%clk 0:00:12.2]}
1-0